bitfinex/quotes_SOLUSD_20250301
["timestamp","ask_amount","ask_price","bid_price","bid_amount"]
[1740832528711,127.3192,141.34,141.24,54.226]
[1740832529001,127.3192,141.34,141.27,20.0]
[1740832529002,80.7,141.32,141.27,20.0]
[1740832529209,6.44,141.33,141.27,101.0]
[1740832529388,119.26,141.34,141.27,102.6215]
[1740832529905,119.26,141.34,141.28,22.2961]
[1740832530113,199.96,141.34,141.28,22.2961]
[1740832532298,199.96,141.34,141.28,54.1477]
[1740832533707,80.7,141.34,141.28,54.1477]
[1740832535786,80.7,141.34,141.28,22.2961]
[1740832536309,80.7,141.34,141.28,22.3591]
[1740832536695,80.73,141.34,141.28,22.3591]
[1740832540509,99.34964886,141.33,141.28,6.4333]
[1740832540694,18.64964886,141.31,141.28,6.4333]
[1740832540895,80.7,141.3,141.28,6.4333]
[1740832541690,80.7,141.3,141.28,0.063]
[1740832557639,80.7,141.32,141.28,20.063]
[1740832557831,80.7,141.32,141.28,42.3588]
[1740832559833,18.64964886,141.31,141.28,42.3588]
[1740832561141,80.7,141.3,141.28,42.3588]
[1740832561925,80.7,141.3,141.28,26.433]
[1740832562126,87.14,141.3,141.28,26.433]
[1740832563451,80.7,141.29,141.28,0.063]
[1740832567733,27.01944886,141.29,141.28,0.063]
[1740832567935,25.01944886,141.29,141.28,0.063]
[1740832568139,18.64964886,141.29,141.28,0.063]
[1740832568345,27.01944886,141.29,141.28,0.063]
[1740832568653,2.0,141.27,141.24,0.063]
[1740832569225,20.64964886,141.28,141.24,0.063]
[1740832569724,27.02024886,141.28,141.24,0.063]
[1740832572836,18.64964886,141.25,141.24,0.063]
[1740832573041,25.06964886,141.25,141.24,0.063]
[1740832580351,31.44124886,141.25,141.24,0.063]
[1740832580738,33.44124886,141.25,141.24,0.063]
[1740832580946,31.44124886,141.25,141.24,0.063]
[1740832581140,33.44124886,141.25,141.24,0.063]
[1740832581837,25.06964886,141.25,141.24,0.063]
[1740832582560,18.64964886,141.25,141.24,0.063]
[1740832583057,6.4,141.26,141.24,0.063]
[1740832583262,119.34,141.29,141.24,0.063]
[1740832583444,18.64964886,141.28,141.24,0.063]
[1740832585170,25.04964886,141.28,141.24,0.063]
[1740832585861,80.7,141.26,141.24,0.063]
[1740832590659,80.7,141.25,141.24,0.063]
[1740832598877,87.13,141.28,141.24,0.063]
[1740832599758,80.73,141.28,141.24,0.063]
[1740832602679,80.7,141.27,141.24,0.063]
[1740832607088,80.7,141.27,141.26,6.3973]
[1740832608665,80.7,141.27,141.26,12.7685]
[1740832609386,0.03,141.28,141.26,12.7685]
[1740832615495,0.0001,141.28,141.27,7.8906]
[1740832618097,0.0001,141.28,141.27,107.54024886]
[1740832618294,6.38,141.36,141.27,107.54024886]
[1740832618295,80.7,141.38,141.3,20.0]
[1740832618501,80.7,141.38,141.31,6.5608]
[1740832619477,80.7,141.38,141.32,6.3685]
[1740832620789,87.0661,141.38,141.32,6.3685]
[1740832621098,87.0661,141.38,141.33,20.0]
[1740832621288,80.7,141.37,141.33,20.0]
[1740832621689,87.0666,141.37,141.33,20.0]
[1740832622804,6.38,141.35,141.27,8.0807]
[1740832623108,80.7,141.33,141.28,6.3702]
[1740832623290,80.7,141.33,141.31,20.0]
[1740832623486,80.7,141.32,141.31,20.0]
[1740832623692,80.7,141.31,141.25,6.3716]
[1740832623899,87.08,141.3,141.25,6.3716]
[1740832624704,87.08,141.3,141.26,20.0]
[1740832625504,87.08,141.3,141.24,6.4351]
[1740832625685,80.7,141.29,141.24,6.4351]
[1740832626780,80.7,141.29,141.25,20.0]
[1740832627607,80.7,141.29,141.24,0.063]
[1740832627993,80.7,141.29,141.25,20.0]
[1740832628700,80.7,141.29,141.25,6.3714]
[1740832629087,99.34964886,141.28,141.24,0.063]
[1740832629408,80.7,141.27,141.24,0.063]
[1740832629588,82.227,141.27,141.24,0.063]
[1740832629783,80.7,141.26,141.24,0.063]
[1740832629989,80.7,141.25,141.24,0.063]
[1740832630189,6.38,141.25,141.24,0.063]
[1740832630417,25.02964886,141.25,141.24,0.063]
[1740832633588,6.38,141.25,141.24,0.063]
[1740832633789,6.38,141.29,141.24,0.063]
[1740832635706,18.64964886,141.28,141.24,0.063]
[1740832638317,80.7,141.27,141.24,0.063]
[1740832641112,80.7,141.27,141.26,20.0]
[1740832642196,6.38,141.31,141.26,20.0]
[1740832642400,87.08,141.32,141.26,20.0]
[1740832643294,87.08,141.32,141.27,6.3707]
[1740832643709,0.03,141.28,141.27,6.3707]
[1740832644600,0.03,141.28,141.25,6.3716]
[1740832645018,0.03,141.28,141.24,0.063]
[1740832645019,80.7,141.27,141.24,6.435]
[1740832645195,80.7,141.26,141.24,6.435]
[1740832645616,80.7,141.26,141.24,0.063]
[1740832645795,80.7,141.25,141.24,0.063]
[1740832647326,18.64964886,141.25,141.24,0.063]
[1740832647613,20.64964886,141.25,141.24,0.063]
[1740832647999,6.3733,141.23,141.18,0.063]
[1740832648194,18.64964886,141.19,141.18,0.063]
[1740832649419,29.02394886,141.19,141.18,0.063]
[1740832650014,18.64964886,141.16,141.15,10.9047913]
[1740832650326,25.02964886,141.16,141.15,0.063]
[1740832650798,27.02964886,141.16,141.15,0.063]
[1740832651201,29.02964886,141.16,141.15,0.063]
[1740832651395,29.02964886,141.16,141.13,0.063]
[1740832651396,4.0,141.15,141.13,0.063]
[1740832651601,18.64964886,141.14,141.13,0.063]
[1740832652302,20.64964886,141.12,141.09,0.063]
[1740832652621,125.78,141.11,141.09,0.063]
[1740832655825,18.64964886,141.1,141.09,0.063]
[1740832659332,25.02804886,141.1,141.09,0.063]
[1740832661516,18.64964886,141.1,141.09,0.063]
[1740832662533,25.02804886,141.1,141.09,0.063]
[1740832662740,27.02804886,141.1,141.09,0.063]
[1740832666222,20.64964886,141.1,141.09,0.063]
[1740832667223,27.02804886,141.1,141.09,0.063]
[1740832667952,18.64964886,141.1,141.09,0.063]
[1740832669443,27.02804886,141.1,141.09,0.063]
[1740832673033,18.64964886,141.1,141.09,0.063]
[1740832673359,6.42,141.1,141.09,0.063]
[1740832673726,119.38,141.11,141.09,0.063]
[1740832673947,125.8,141.11,141.09,0.063]
[1740832674861,119.38,141.11,141.09,0.063]
[1740832685341,18.67964886,141.12,141.09,0.063]
[1740832685854,80.7,141.11,141.09,0.063]
[1740832691743,80.7,141.1,141.09,0.063]
[1740832696667,18.64964886,141.1,141.09,0.063]
[1740832697251,25.02804886,141.1,141.09,0.063]
[1740832697670,28.56094886,141.1,141.09,0.063]
[1740832698667,20.18254886,141.1,141.09,0.063]
[1740832698860,18.64964886,141.1,141.09,0.063]
[1740832700763,25.02804886,141.1,141.09,0.063]
[1740832701474,144.52804886,141.1,141.09,0.063]
[1740832701876,138.14964886,141.1,141.09,0.063]
[1740832704274,144.52804886,141.1,141.09,0.063]
[1740832704874,146.52804886,141.1,141.09,0.063]
[1740832707050,150.14464886,141.1,141.09,0.063]
[1740832707286,150.14464886,141.1,141.09,0.0001]
[1740832707584,24.0,141.07,141.06,0.063]
[1740832707874,49.04964886,141.07,141.06,0.063]
[1740832708760,49.04964886,141.07,141.0,0.063]
[1740832708761,2.0,141.02,141.0,0.063]
[1740832708956,25.04964886,141.01,141.0,0.063]
[1740832709278,31.43214886,141.01,141.0,0.063]
[1740832710068,33.43214886,141.01,141.0,0.063]
[1740832712272,31.43214886,141.01,141.0,0.063]
[1740832712573,33.43214886,141.01,141.0,0.063]
[1740832714783,35.43214886,141.01,141.0,0.063]
[1740832716355,33.43214886,141.01,141.0,0.063]
[1740832716881,35.43214886,141.01,141.0,0.063]
[1740832717564,2.0,141.04,141.0,0.063]
[1740832717767,6.4,141.03,141.0,0.063]
[1740832717994,18.64964886,141.02,141.0,0.063]
[1740832718762,0.03,141.06,141.0,0.063]
[1740832718964,6.4,141.05,141.0,0.063]
[1740832719378,18.64964886,141.04,141.0,0.063]
[1740832719682,80.7,141.03,141.0,0.063]
[1740832719876,80.7,141.02,141.0,0.063]
[1740832724589,80.7,141.01,141.0,0.063]
[1740832725289,6.4,141.03,141.0,0.063]
[1740832725290,87.1,141.03,141.0,0.063]
[1740832725478,80.7,141.03,141.0,0.063]
[1740832725678,6.4,141.02,141.0,0.063]
[1740832728197,80.7,141.03,141.0,0.063]
[1740832729179,18.67964886,141.06,141.0,0.063]
[1740832729180,80.7,141.05,141.0,0.063]
[1740832730001,80.7,141.05,141.02,20.0]
[1740832730372,80.7,141.05,141.0,0.063]
[1740832730972,0.03,141.06,141.02,20.0]
[1740832731177,0.03,141.06,141.03,6.5341]
[1740832731672,0.03,141.06,141.04,1.5246]
[1740832732597,0.03,141.06,141.05,6.3807]
[1740832734901,0.03,141.06,141.04,1.5246]
[1740832735076,80.7,141.05,141.02,6.3819]
[1740832735276,80.7,141.05,141.01,7.9869]
[1740832736293,80.7,141.04,141.0,12.4868]
[1740832737002,80.7,141.04,141.0,0.063]
[1740832737589,80.7,141.04,141.0,6.4459]
[1740832738200,80.7,141.04,141.0,0.063]
[1740832740408,80.73,141.06,141.0,0.063]
[1740832740583,80.73,141.06,141.01,6.041]
[1740832742081,80.73,141.06,141.02,6.382]
[1740832742705,80.73,141.06,141.02,22.3371]
[1740832743813,0.03,141.06,141.02,22.3371]
[1740832743989,80.7,141.09,141.05,20.0]
[1740832744299,125.9,141.1,141.05,21.6045]
[1740832744817,119.5,141.1,141.05,21.6045]
[1740832745018,119.5,141.1,141.06,6.041]
[1740832746191,119.5,141.1,141.06,12.4211]
[1740832748104,80.7,141.09,141.06,12.4211]
[1740832749802,87.1,141.08,141.03,6.3816]
[1740832751022,80.7,141.07,141.03,6.3816]
[1740832752016,80.7,141.07,141.0,0.063]
[1740832752216,80.7,141.06,141.01,6.3825]
[1740832753108,80.7,141.06,141.0,0.063]
[1740832753306,80.7,141.06,141.0,6.4459]
[1740832753502,80.7,141.06,141.02,0.063]
[1740832755817,80.7,141.08,141.03,20.0]
[1740832756141,6.4,141.08,141.03,20.0]
[1740832757025,6.4,141.08,141.04,22.334]
[1740832758826,6.4,141.08,141.05,3.48404379]
[1740832759521,6.4,141.08,141.06,6.3802]
[1740832760622,0.03,141.09,141.06,6.3802]
[1740832761333,0.03,141.09,141.06,22.3308]
[1740832761507,0.03,141.09,141.06,28.3718]
[1740832764123,0.03,141.09,141.06,22.3308]
[1740832773134,80.7,141.1,141.06,22.3308]
[1740832773435,6.43,141.12,141.06,22.3308]
[1740832774039,0.03,141.12,141.06,22.3308]
[1740832777949,80.73,141.12,141.06,22.3308]
[1740832778622,80.73,141.12,141.06,22.3938]
[1740832778835,80.73,141.12,141.06,6.4432]
[1740832779241,87.1076,141.12,141.06,6.4432]
[1740832779440,80.73,141.12,141.06,6.4432]
[1740832780948,80.73,141.12,141.06,22.3938]
[1740832784918,18.64964886,141.11,141.06,6.4432]
[1740832785122,80.7,141.1,141.06,6.4432]
[1740832786143,80.7,141.1,141.06,0.063]
[1740832787643,80.7,141.1,141.07,20.0]
[1740832787944,87.1,141.1,141.08,6.3793]
[1740832789048,87.1,141.1,141.07,20.0]
[1740832790462,87.1,141.1,141.08,0.063]
[1740832790949,87.13,141.1,141.08,6.4423]
[1740832792149,87.13,141.1,141.08,0.063]
[1740832792633,80.7,141.09,141.08,0.063]
[1740832792947,6.43,141.1,141.08,0.063]
[1740832793734,0.03,141.1,141.08,0.063]
[1740832801536,6.4,141.09,141.08,0.063]
[1740832801954,25.04964886,141.09,141.08,0.063]
[1740832803159,6.43,141.1,141.08,0.063]
[1740832805341,0.03,141.1,141.08,0.063]
[1740832823194,80.73,141.1,141.08,0.063]
[1740832823382,18.64964886,141.09,141.08,0.063]
[1740832823579,0.03,141.1,141.08,0.063]
[1740832825811,6.41,141.1,141.08,0.063]
[1740832826675,0.03,141.1,141.08,0.063]
[1740832828502,0.03,141.1,141.08,6.4423]
[1740832834381,80.73,141.1,141.08,6.4423]
[1740832840604,0.03,141.12,141.11,20.0]
[1740832841507,119.5,141.15,141.11,42.323]
[1740832842895,6.38,141.18,141.11,42.323]
[1740832843708,80.7,141.19,141.11,42.323]
[1740832843885,80.7,141.19,141.12,1.5952]
[1740832844093,80.7,141.19,141.16,20.0]
[1740832844288,6.38,141.2,141.16,20.0]
[1740832844707,0.03,141.21,141.16,101.0]
[1740832845006,0.03,141.21,141.17,22.3134]
[1740832845415,0.03,141.21,141.17,6.3752]
[1740832846110,1.599,141.21,141.16,20.0]
[1740832846412,0.03,141.21,141.16,26.3756]
[1740832852826,87.08,141.2,141.16,20.0]
[1740832853039,87.08,141.2,141.15,6.3761]
[1740832853206,18.64964886,141.19,141.13,6.2736]
[1740832853408,80.7,141.18,141.13,12.6502]
[1740832854516,80.7,141.18,141.16,20.0]
[1740832854711,6.38,141.2,141.16,20.0]
[1740832855118,0.03,141.21,141.16,101.0]
[1740832855315,0.03,141.21,141.2,20.0]
[1740832855525,0.03,141.21,141.2,26.3739]
[1740832857134,0.03,141.21,141.18,6.3748]
[1740832858730,0.03,141.21,141.18,22.3119]
[1740832859631,0.03,141.21,141.2,20.0]
[1740832859927,87.11,141.24,141.21,20.0]
[1740832859928,80.73,141.24,141.21,20.0]
[1740832860126,0.03,141.24,141.22,6.373]
[1740832865342,0.03,141.24,141.21,20.0]
[1740832865518,0.03,141.24,141.21,26.3733]
[1740832865713,80.73,141.24,141.17,27.5100713]
[1740832865917,80.73,141.24,141.18,6.3748]
[1740832866128,80.73,141.24,141.18,22.3119]
[1740832867436,80.73,141.24,141.21,20.0]
[1740832868737,80.73,141.24,141.21,26.373]
[1740832869118,80.73,141.24,141.21,26.3734]
[1740832872738,80.73,141.24,141.18,22.3119]
[1740832873040,80.7,141.23,141.21,20.0]
[1740832873217,0.03,141.24,141.21,20.0]
[1740832874628,0.03,141.24,141.18,22.3119]
[1740832874828,80.73,141.24,141.18,22.3119]
[1740832875751,80.73,141.24,141.21,0.063]
[1740832875965,80.7,141.23,141.21,0.063]
[1740832876138,6.38,141.22,141.21,0.063]
[1740832877130,31.40264886,141.22,141.21,0.063]
[1740832884553,25.02964886,141.22,141.21,0.063]
[1740832885126,31.40264886,141.22,141.21,0.063]
[1740832885850,26.95514886,141.21,141.13,6.3769]
[1740832886065,26.95514886,141.21,141.12,6.4403]
[1740832886232,18.64964886,141.2,141.12,6.4403]
[1740832886435,6.3743,141.19,141.12,0.063]
[1740832887458,18.64964886,141.2,141.12,0.063]
[1740832887667,27.02354886,141.2,141.12,0.063]
[1740832889348,2.0,141.19,141.12,0.063]
[1740832889554,18.64964886,141.17,141.12,0.063]
[1740832889739,18.64964886,141.15,141.12,0.063]
[1740832890755,80.7,141.14,141.12,0.063]
[1740832891060,87.08,141.16,141.12,0.063]
[1740832893255,80.7,141.16,141.12,6.543]
[1740832894463,80.7,141.16,141.13,22.3197]
[1740832896454,80.7,141.18,141.15,20.0]
[1740832896758,80.7,141.18,141.16,6.3757]
[1740832904671,80.73,141.21,141.16,6.3757]
[1740832904861,80.73,141.21,141.16,22.315]
[1740832905570,80.73,141.21,141.16,23.8929]
[1740832906666,80.73,141.21,141.16,6.3757]
[1740832908568,80.7,141.2,141.14,22.3181]
[1740832920575,80.7,141.19,141.14,22.3181]
[1740832920962,80.7,141.18,141.14,6.3766]
[1740832921169,87.08,141.17,141.13,6.4399]
[1740832921358,6.38,141.17,141.13,6.4399]
[1740832922162,6.38,141.17,141.13,0.063]
[1740832922561,99.34964886,141.16,141.13,0.063]
[1740832923966,80.7,141.16,141.13,0.063]
[1740832924778,80.7,141.15,141.13,0.063]
[1740832924982,6.38,141.17,141.13,20.063]
[1740832925182,6.38,141.17,141.14,6.3766]
[1740832928371,6.38,141.17,141.14,22.3182]
[1740832928582,6.38,141.17,141.15,1.5195]
[1740832928890,80.7,141.2,141.15,1.5195]
[1740832929487,80.7,141.2,141.16,6.3757]
[1740832929690,80.7,141.2,141.16,22.315]
[1740832931000,80.7,141.2,141.16,6.3757]
[1740832932314,80.7,141.19,141.16,6.3757]
[1740832938826,80.7,141.18,141.13,12.5036]
[1740832939003,6.38,141.17,141.13,0.063]
[1740832939319,80.7,141.16,141.13,0.063]
[1740832940022,80.7,141.15,141.13,0.063]
[1740832944221,80.7,141.14,141.13,0.063]
[1740832944521,18.64964886,141.15,141.13,0.063]
[1740832945516,12.7554,141.17,141.13,0.063]
[1740832945822,18.64964886,141.15,141.13,0.063]
[1740832948715,80.7,141.16,141.13,0.063]
[1740832950106,80.7,141.15,141.13,0.063]
[1740832951936,119.44,141.18,141.13,21.6475]
[1740832952101,125.82,141.18,141.13,21.6475]
[1740832952727,125.82,141.18,141.14,6.3766]
[1740832953824,132.1949,141.18,141.13,6.4399]
[1740832954126,18.64964886,141.17,141.13,6.4399]
[1740832955008,80.7,141.16,141.13,0.063]
[1740832959031,80.7,141.15,141.13,0.063]
[1740832961836,80.7,141.14,141.13,0.063]
[1740832963918,18.64964886,141.14,141.13,0.063]
[1740832965645,25.02624886,141.14,141.13,0.063]
[1740832966142,18.64964886,141.14,141.13,0.063]
[1740832971031,127.3501,141.18,141.13,0.063]
[1740832971342,18.64964886,141.17,141.13,0.063]
[1740832971930,99.34964886,141.17,141.13,0.063]
[1740832974029,105.72494886,141.17,141.13,0.063]
[1740832975256,109.72494886,141.17,141.13,0.063]
[1740832976863,18.64964886,141.15,141.13,0.063]
[1740832977158,99.34964886,141.14,141.13,0.063]
[1740832978643,27.02624886,141.14,141.13,0.063]
[1740832978841,29.02624886,141.14,141.13,0.063]
[1740832979363,30.67624886,141.14,141.13,0.063]
[1740832980560,26.67624886,141.14,141.13,0.063]
[1740832982465,146.15624886,141.14,141.13,0.063]
[1740832983966,144.50624886,141.14,141.13,0.063]
[1740832993879,148.50624886,141.14,141.13,0.063]
[1740832995161,146.50624886,141.14,141.13,0.063]
[1740832995368,148.50624886,141.14,141.13,0.063]
[1740832997070,27.02664886,141.13,141.12,0.063]
[1740832997271,33.40664886,141.13,141.12,0.063]
[1740832998470,35.40664886,141.13,141.12,0.063]
[1740832999572,36.94844886,141.13,141.12,0.0001]
[1740832999772,43.83157551,141.13,141.12,0.0001]
[1740833000478,49.91767551,141.13,141.12,0.0001]
[1740833002187,55.25330831,141.13,141.12,0.0001]
[1740833005391,49.16720831,141.13,141.12,0.0001]
[1740833006279,43.83157551,141.13,141.12,0.0001]
[1740833008090,43.86157551,141.13,141.12,0.0001]
[1740833009273,43.86157551,141.13,141.08,0.063]
[1740833009274,40.64964886,141.1,141.08,0.063]
[1740833009466,99.34964886,141.09,141.08,0.063]
[1740833009668,20.64964886,141.09,141.08,0.063]
[1740833009975,38.64964886,141.07,141.06,0.063]
[1740833010183,45.02964886,141.07,141.06,0.063]
[1740833010380,47.02964886,141.07,141.06,0.063]
[1740833011282,170.92944886,141.07,141.06,0.063]
[1740833012874,144.54964886,141.07,141.06,0.063]
[1740833013187,125.9,141.07,141.06,0.063]
[1740833013490,119.52,141.07,141.06,0.063]
[1740833013690,119.52,141.07,141.06,6.3206]
[1740833013984,6.38,141.1,141.06,7.9094]
[1740833014177,80.7,141.09,141.06,7.9094]
[1740833015181,80.7,141.09,141.07,6.3798]
[1740833023601,80.7,141.11,141.07,22.3293]
[1740833023794,80.73,141.13,141.11,7.5938]
[1740833025000,119.54,141.15,141.11,7.5938]
[1740833025001,80.7,141.18,141.11,7.5938]
[1740833025497,80.7,141.17,141.11,7.5938]
[1740833025687,80.7,141.17,141.12,22.3213]
[1740833027684,80.7,141.17,141.12,25.83397477]
[1740833031205,80.7,141.17,141.12,25.89697477]
[1740833031408,80.73,141.17,141.12,25.89697477]
[1740833031706,80.7,141.16,141.12,6.4405]
[1740833033212,80.7,141.16,141.12,22.3843]
[1740833034598,80.7,141.16,141.12,6.4405]
[1740833039901,0.03,141.17,141.12,22.3843]
[1740833040929,0.03,141.17,141.15,20.0]
[1740833041131,0.03,141.17,141.12,22.3843]
[1740833043135,0.03,141.17,141.12,6.4405]
[1740833045443,80.7,141.16,141.12,6.4405]
[1740833045938,80.7,141.16,141.15,20.0]
[1740833047426,80.7,141.16,141.15,26.3761]
[1740833051117,0.03,141.17,141.15,26.3761]
[1740833053033,80.7,141.2,141.15,26.3761]
[1740833053228,0.03,141.21,141.19,20.0]
[1740833053427,0.0001,141.22,141.2,42.21174886]
[1740833053629,0.0001,141.22,141.21,25.19984886]
[1740833055044,0.0001,141.22,141.21,110.19984886]
[1740833055248,0.0001,141.22,141.21,116.57324886]
[1740833058936,0.03,141.25,141.24,20.0]
[1740833061368,0.03,141.25,141.24,26.3721]
[1740833063465,0.03,141.26,141.24,29.87201377]
[1740833063645,0.03,141.27,141.25,18.64964886]
[1740833065043,0.03,141.27,141.26,20.0]
[1740833065257,0.03,141.27,141.26,26.3712]
[1740833065459,0.03,141.27,141.26,6.3712]
[1740833065636,0.03,141.27,141.24,19.43021377]
[1740833065837,0.03,141.27,141.21,103.4829]
[1740833066037,80.73,141.27,141.22,6.373]
[1740833066357,87.09,141.27,141.22,6.373]
[1740833066952,80.7,141.26,141.22,6.373]
[1740833067159,80.7,141.26,141.21,6.4364]
[1740833068566,80.7,141.25,141.21,0.063]
[1740833070867,1.5387,141.24,141.21,0.063]
[1740833071037,80.7,141.23,141.21,0.063]
[1740833073860,80.7,141.22,141.21,0.063]
[1740833077263,87.06,141.22,141.21,0.063]
[1740833077871,6.36,141.22,141.21,0.063]
[1740833079377,25.00964886,141.22,141.21,0.063]
[1740833079563,31.38264886,141.22,141.21,0.063]
[1740833080072,18.64964886,141.2,141.12,0.063]
[1740833080273,6.5851,141.19,141.13,6.3769]
[1740833080454,6.5851,141.19,141.12,26.4404]
[1740833080955,6.3748,141.18,141.12,26.4404]
[1740833081271,6.36,141.17,141.12,26.4404]
[1740833081663,6.36,141.17,141.12,0.063]
[1740833082170,18.64964886,141.16,141.12,0.063]
[1740833082471,1.6448,141.15,141.12,0.063]
[1740833082672,82.3448,141.15,141.12,0.063]
[1740833084360,80.7,141.15,141.12,0.063]
[1740833085253,80.7,141.21,141.16,20.0]
[1740833085468,80.7,141.2,141.16,20.0]
[1740833085776,126.0672,141.26,141.17,20.0]
[1740833085777,80.7,141.22,141.17,20.0]
[1740833085958,119.45,141.26,141.18,18.64964886]
[1740833086160,200.15,141.26,141.18,20.64964886]
[1740833086369,200.15,141.26,141.21,20.0]
[1740833087272,200.15,141.26,141.22,22.3055]
[1740833087663,80.73,141.26,141.22,28.9049]
[1740833087863,0.03,141.26,141.22,28.9049]
[1740833088061,0.03,141.26,141.25,20.0]
[1740833089063,0.03,141.26,141.21,6.3734]
[1740833089267,80.73,141.26,141.21,6.3734]
[1740833089473,80.73,141.26,141.24,20.0]
[1740833089783,0.03,141.26,141.24,20.0]
[1740833090877,0.03,141.26,141.25,6.3716]
[1740833098792,0.03,141.26,141.24,26.3719]
[1740833100998,0.03,141.26,141.24,20.0]
[1740833101301,80.7,141.25,141.22,20.0]
[1740833102069,80.7,141.25,141.22,26.3727]
[1740833105205,80.7,141.25,141.22,6.3727]
[1740833105494,80.7,141.25,141.19,6.3743]
[1740833105694,80.7,141.24,141.19,6.3743]
[1740833107114,80.7,141.24,141.19,15.9359]
[1740833107487,80.7,141.24,141.22,20.0]
[1740833107693,80.73,141.26,141.22,20.0]
[1740833108779,0.03,141.26,141.22,22.0]
[1740833109080,0.03,141.27,141.25,20.0]
[1740833109285,0.0001,141.27,141.26,6.3712]
[1740833112495,0.0001,141.27,141.25,25.63332253]
[1740833113596,0.0001,141.27,141.26,6.3712]
[1740833115199,0.0001,141.28,141.27,22.64964886]
[1740833117190,0.0001,141.28,141.27,29.02034886]
[1740833117780,0.03,141.36,141.32,20.0]
[1740833117986,0.03,141.36,141.31,4.0]
[1740833117987,0.03,141.36,141.34,20.0]
[1740833119783,0.03,141.36,141.35,6.3671]
[1740833120486,0.03,141.36,141.34,26.3674]
[1740833120684,0.03,141.36,141.3,6.3694]
[1740833120888,82.233,141.35,141.31,20.0]
[1740833122119,82.233,141.35,141.31,26.3686]
[1740833124786,80.7,141.34,141.27,22.4591]
[1740833125101,80.7,141.34,141.28,6.3703]
[1740833125299,80.7,141.33,141.28,6.3703]
[1740833125609,80.7,141.33,141.25,6.3716]
[1740833125780,6.34,141.32,141.28,20.0]
[1740833126600,6.34,141.32,141.27,20.0]
[1740833126784,12.7085,141.32,141.27,20.0]
[1740833126978,80.7,141.31,141.25,0.063]
[1740833127179,82.233,141.3,141.25,0.063]
[1740833128210,80.7,141.29,141.25,0.063]
[1740833129624,87.0699,141.29,141.25,0.063]
[1740833129793,80.7,141.28,141.25,0.063]
[1740833129989,87.04,141.27,141.25,0.063]
[1740833130388,80.7,141.26,141.25,0.063]
[1740833134319,12.7109,141.27,141.25,0.063]
[1740833135315,18.64964886,141.26,141.25,0.063]
[1740833136001,20.22424886,141.26,141.25,0.063]
[1740833137022,26.59544886,141.26,141.25,0.063]
[1740833139322,20.22424886,141.26,141.25,0.063]